fUSD/lending_fUSD_20250530
["ID","MTS","AMOUNT","RATE_DAILY","PERIOD"]
[363098120,1748575848640,-322.08439987,0.00021917,2]
[363098121,1748575848752,-1155.00000005,0.00021917,2]
[363098122,1748575848764,-28225.38373695,0.00021917,2]
[363098123,1748575848774,-420.0,0.00021917,2]
[363098124,1748575848783,-420.0,0.00021917,2]
[363098125,1748575848793,-5733.1,0.00021917,2]
[363098126,1748575848802,-420.0,0.00021917,2]
[363098127,1748575848812,-1009.53,0.00021917,2]
[363098128,1748575848821,-1683.23,0.00021917,2]
[363098129,1748575848830,-925.04,0.00021917,2]
[363098130,1748575848840,-1435.82,0.00021917,2]
[363098131,1748575848849,-507.28,0.00021917,2]
[363098132,1748575848859,-3911.78,0.00021917,2]
[363098133,1748575848868,-428.24,0.00021917,2]
[363098134,1748575848879,-420.0,0.00021917,2]
[363098135,1748575848890,-427.27,0.00021917,2]
[363098136,1748575848899,-445.96,0.00021917,2]
[363098137,1748575848908,-1033.79,0.00021917,2]
[363098138,1748575848919,-545.45,0.00021917,2]
[363098139,1748575848928,-420.0,0.00021917,2]
[363098140,1748575848937,-948.12626305,0.00021917,2]
[363098141,1748575848959,-5178.07373695,0.00021917,2]
[363098142,1748575848968,-427.9376852,0.00021917,2]
[363098143,1748575848978,-420.0,0.00021917,2]
[363098144,1748575848988,-420.0,0.00021917,2]
[363098145,1748575848997,-850.73,0.00021917,2]
[363098146,1748575849007,-660.25,0.00021917,2]
[363098147,1748575849016,-510.83,0.00021917,2]
[363098148,1748575849026,-473.9,0.00021917,2]
[363098149,1748575849035,-548.01,0.00021917,2]
[363098150,1748575849045,-2804.55,0.00021917,2]
[363098151,1748575849054,-2425.06,0.00021917,2]
[363098152,1748575849063,-420.0,0.00021917,2]
[363098153,1748575849073,-1778.38,0.00021917,2]
[363098154,1748575849082,-674.61,0.00021917,2]
[363098155,1748575849092,-1099.59,0.00021917,2]
[363098156,1748575849101,-638.96,0.00021917,2]
[363098157,1748575849110,-420.0,0.00021917,2]
[363098158,1748575849119,-420.0,0.00021917,2]
[363098159,1748575849129,-420.0,0.00021917,2]
[363098160,1748575849139,-1386.68,0.00021917,2]
[363098161,1748575849148,-950.06,0.00021917,2]
[363098162,1748575849158,-250.29054205,0.00021917,2]
[363098163,1748575849171,-497.00945795,0.00021917,2]
[363098164,1748575849181,-482.08793967,0.00021917,2]
[363098165,1748575849190,-420.0,0.00021917,2]
[363098166,1748575849200,-1318.06,0.00021917,2]
[363098167,1748575849209,-420.0,0.00021917,2]
[363098168,1748575849218,-88.04657829,0.00021918,2]
[363098169,1748575849238,-420.0,0.00021917,2]
[363098170,1748575849247,-411.95342171,0.00021918,2]
[363098171,1748575849256,-589.79954848,0.00021918,2]
[363098172,1748575849265,-500.0,0.00021918,2]
[363098173,1748575849275,-378.16607354,0.00021918,2]
[363098174,1748575849284,-500.0,0.00021973,2]
[363098175,1748575849293,-500.0,0.00021973,2]
[363098176,1748575849302,-500.0,0.00021973,2]
[363098177,1748575849312,-500.0,0.00021973,2]
[363098178,1748575849321,-500.0,0.00021973,2]
[363098179,1748575849331,-500.0,0.00021973,2]
[363098180,1748575849340,-3027.82027226,0.00022,3]
[363098181,1748575849349,-156.97894079,0.00022,2]
[363098182,1748575849359,-1000.0,0.00022006,7]
[363098183,1748575849369,-1000.0,0.00022006,7]
[363098184,1748575849380,-1000.0,0.00022006,7]
[363098185,1748575849390,-1000.0,0.00022006,7]
[363098186,1748575849400,-1000.0,0.00022006,7]
[363098187,1748575849410,-1000.0,0.00022006,7]
[363098188,1748575849419,-1000.0,0.00022006,7]
[363098189,1748575849429,-1000.0,0.00022006,7]
[363098190,1748575849439,-1000.0,0.00022006,7]
[363098191,1748575849449,-1000.0,0.00022006,7]
[363098192,1748575849459,-1000.0,0.00022006,2]
[363098193,1748575849469,-1000.0,0.00022006,2]
[363098194,1748575849478,-1000.0,0.00022006,2]
[363098195,1748575849488,-1000.0,0.00022006,2]
[363098196,1748575849498,-1000.0,0.00022006,2]
[363098197,1748575849509,-1000.0,0.00022006,2]
[363098198,1748575849519,-1000.0,0.00022006,2]
[363098199,1748575849530,-1000.0,0.00022006,2]
[363098200,1748575849540,-1000.0,0.00022006,2]
[363098201,1748575849549,-1000.0,0.00022006,2]
[363098202,1748575849559,-1066.09215,0.00022014,3]
[363098203,1748575849569,-167.31162256,0.00022037,2]
[363098204,1748575849579,-806.64,0.00022055,2]
[363098205,1748575849588,-1006.12,0.00022055,2]
[363098206,1748575849597,-161.00686604,0.00022091,2]
[363098207,1748575849607,-5727.69270096,0.00022091,2]
[363098208,1748575849616,-2088.23396962,0.00022091,2]
[363098209,1748575849625,-162.13057754,0.00022091,2]
[363098210,1748575849635,-166.8360045,0.00022092,2]
[363098211,1748575849645,-857.757509,0.0002216,2]
[363098212,1748575849654,-2036.493256,0.00022164,2]
[363098213,1748575849664,-2500.0,0.00022164,2]
[363098214,1748575849673,-500.68423637,0.00022173,2]
[363098215,1748575849683,-500.93585068,0.00022173,2]
[363098216,1748575849692,-500.83739685,0.00022173,2]
[363098217,1748575849701,-501.36394382,0.00022173,2]
[363098218,1748575849711,-159.57751736,0.00022173,2]
[363098219,1748575849720,-500.35080186,0.00022173,2]
[363098220,1748575849730,-500.0,0.00022173,2]
[363098221,1748575849739,-502.26772948,0.00022173,2]
[363098222,1748575849749,-500.0,0.00022173,2]
[363098223,1748575849759,-500.0,0.00022173,2]
[363098224,1748575849768,-500.0,0.00022173,2]
[363098225,1748575849777,-160.8103841,0.00022173,2]
[363098226,1748575849787,-162.64664087,0.00022173,2]
[363098227,1748575849796,-500.0,0.00022173,2]
[363098228,1748575849805,-500.0,0.00022173,2]
[363098229,1748575849816,-500.0,0.0002219,2]
[363098230,1748575849827,-500.0,0.0002219,2]
[363098231,1748575849837,-500.0,0.0002219,2]
[363098232,1748575849846,-500.0,0.0002219,2]
[363098233,1748575849856,-426.68913907,0.0002219,3]
[363098234,1748575849865,-177368.16687811,0.0002219,3]
[363098235,1748575849880,-10574.18752239,0.0002219,3]
[363098236,1748575849905,-7073.52604624,0.0002219,3]
[363098237,1748575850808,-700.0,0.00019999,2]
[363098238,1748575850817,-500.0,0.00019999,2]
[363098239,1748575850826,-626.48505532,0.00019999,2]
[363098240,1748575850834,-212.69807457,0.00019999,2]
[363098241,1748575850843,-500.0,0.00019999,2]
[363098242,1748575850851,-392.25171057,0.00019999,2]
[363098243,1748575850860,-498.0,0.000205,2]
[363098244,1748575850869,-420.0,0.00021917,2]
[363098245,1748575850882,-172.41550686,0.00021917,2]
[363098246,1748575850891,-420.0,0.00021917,2]
[363098247,1748575850899,-420.0,0.00021917,2]
[363098248,1748575850907,-246.18625895,0.00021917,2]
[363098249,1748575850916,-21261.58201702,0.0002219,3]
[363098250,1748575850958,-186310.0800996,0.0002219,3]
[363098251,1748575850977,-781.8682045,0.0002219,3]
[363098252,1748575850989,-33493.80962722,0.0002219,3]
[363098253,1748575851022,-420.0,0.00021917,2]
[363098254,1748575851032,-4120.0,0.0002219,3]
[363098255,1748575851043,-254.01999999,0.0002219,3]
[363098256,1748575851161,-40031.59855305,0.0002219,3]
[363098257,1748575851187,-23555.76683178,0.0002219,3]
[363098258,1748575851294,-420.0,0.00021917,2]
[363098259,1748575851304,-166994.91869256,0.0002219,3]
[363098260,1748575852163,-420.0,0.00021917,2]
[363098261,1748575852173,-420.0,0.00021917,2]
[363098262,1748575852182,-804.78,0.00021917,2]
[363098263,1748575852191,-159.069891,0.00021917,2]
[363098264,1748575852201,-178.005703,0.00021917,2]
[363098265,1748575852211,-420.0,0.00021917,2]
[363098266,1748575852220,-420.0,0.00021917,2]
[363098267,1748575852230,-420.0,0.00021917,2]
[363098268,1748575852239,-500.0,0.00021917,2]
[363098269,1748575852249,-105264.12946292,0.0002219,3]
[363098270,1748575852260,-832.193085,0.0002219,3]
[363098271,1748575852271,-784.9815,0.0002219,3]
[363098272,1748575852283,-1451.034749,0.0002219,3]
[363098273,1748575852294,-545.152395,0.0002219,3]
[363098274,1748575852305,-944.7470665,0.0002219,3]
[363098275,1748575852317,-472.95900005,0.0002219,3]
[363098276,1748575852328,-608.78929597,0.0002219,3]
[363098277,1748575852340,-5598.32674356,0.0002219,3]
[363098278,1748575852351,-3178.49582213,0.0002219,3]
[363098279,1748575852363,-4475.09544,0.0002219,3]
[363098280,1748575852383,-691.70279677,0.0002219,3]
[363098281,1748575852399,-1125.30532543,0.0002219,3]
[363098282,1748576012102,900.0,0.00018903,2]
[363098284,1748576173860,500.0,0.00018903,2]
[363098285,1748576180677,1128.39,0.0001848,2]
[363098461,1748576741293,29.80259209,0.00019257,2]
[363098462,1748576741316,173.19740791,0.00019257,2]
[363098465,1748576790141,-900.0,0.00019999,2]
[363098466,1748576790164,-200.0,0.00019999,2]
[363098467,1748576790187,-200.0,0.00019999,2]
[363098468,1748576790215,-165.43599309,0.0002,4]
[363098469,1748576790238,-200.0,0.00020117,2]
[363098470,1748576790259,-2751.0,0.00020305,2]
[363098471,1748576790281,-520.48755957,0.00020309,2]
[363098473,1748576806208,192.25,0.00013699,2]
[363098485,1748576887201,800.0,0.00018903,2]
[363098509,1748577031558,-800.0,0.00019999,2]
[363098510,1748577031568,-192.25,0.00020187,2]
[363098511,1748577031578,-200.0,0.00020257,2]
[363098512,1748577031587,-200.0,0.00020318,2]
[363098513,1748577031595,-273.99,0.00020326,2]
[363098514,1748577031605,-2781.82882893,0.00020336,2]
[363098515,1748577031708,-552.17541134,0.00020336,2]
[363098516,1748577031720,-1369.94998959,0.00020336,2]
[363098517,1748577031731,-14734.33456412,0.00020336,2]
[363098538,1748577037487,-1856.33146542,0.00020336,2]
[363098539,1748577037583,-2605.3797406,0.00020336,2]
[363098540,1748577037593,-1009.15,0.0002035,2]
[363098541,1748577037602,-500.0,0.00020352,2]
[363098542,1748577037617,-167.97,0.00020354,2]
[363098543,1748577037626,-250.0,0.00020373,2]
[363098544,1748577037635,-382.35,0.00020405,2]
[363098545,1748577037645,-1128.39,0.00020744,2]
[363098546,1748577037655,-453.91,0.000208,2]
[363098547,1748577037666,-160.09,0.00020986,2]
[363098548,1748577037677,-300.0,0.00020998,2]
[363098549,1748577037687,-1200.0,0.00020998,2]
[363098550,1748577037697,-303.28,0.00020999,2]
[363098551,1748577037706,-302.62,0.00020999,2]
[363098552,1748577037716,-303.66,0.00020999,2]
[363098553,1748577037726,-302.28,0.00020999,2]
[363098554,1748577037735,-301.27,0.00020999,2]
[363098555,1748577037746,-302.54,0.00020999,2]
[363098557,1748577037755,-300.88,0.00020999,2]
[363098558,1748577037765,-301.61,0.00020999,2]
[363098560,1748577037774,-302.88,0.00020999,2]
[363098561,1748577037784,-304.64,0.00020999,2]
[363098562,1748577037794,-303.58,0.00020999,2]
[363098563,1748577037803,-303.74,0.00020999,2]
[363098565,1748577037813,-305.36,0.00020999,2]
[363098566,1748577037825,-301.57,0.00020999,2]
[363098567,1748577037835,-302.75,0.00020999,2]
[363098568,1748577037844,-305.78,0.00020999,2]
[363098569,1748577037854,-303.2,0.00020999,2]
[363098570,1748577037864,-303.13,0.00020999,2]
[363098571,1748577037874,-301.83,0.00020999,2]
[363098572,1748577037884,-301.39,0.00020999,2]
[363098573,1748577037894,-303.22,0.00020999,2]
[363098574,1748577037903,-305.31,0.00020999,2]
[363098575,1748577037914,-304.21,0.00020999,2]
[363098577,1748577037923,-305.45,0.00020999,2]
[363098579,1748577037933,-301.12,0.00020999,2]
[363098581,1748577037942,-305.8,0.00020999,2]
[363098583,1748577037951,-303.79,0.00020999,2]
[363098585,1748577037961,-303.36,0.00020999,2]
[363098587,1748577037971,-300.09,0.00020999,2]
[363098589,1748577037981,-301.47,0.00020999,2]
[363098591,1748577037990,-302.76,0.00020999,2]
[363098594,1748577038006,-301.07,0.00020999,2]
[363098596,1748577038016,-303.45,0.00020999,2]
[363098598,1748577038026,-216.86830573,0.00021002,2]
[363098600,1748577038036,-207.4,0.00021077,2]
[363098602,1748577038045,-800.0,0.00021095,2]
[363098604,1748577038055,-1115.157653,0.0002117,2]
[363098606,1748577038065,-151.0,0.0002117,2]
[363098608,1748577038075,-496.16352224,0.00021182,2]
[363098610,1748577038085,-365.54,0.00021227,2]
[363098612,1748577038096,-365.54,0.00021232,2]
[363098613,1748577038105,-365.54,0.00021238,2]
[363098614,1748577038115,-365.54,0.00021244,2]
[363098615,1748577038125,-365.54,0.00021249,2]
[363098616,1748577038135,-365.54,0.00021255,2]
[363098617,1748577038144,-365.54,0.0002126,2]
[363098618,1748577038153,-365.54,0.00021266,2]
[363098619,1748577038164,-365.54,0.00021271,2]
[363098620,1748577038174,-365.54,0.00021277,2]
[363098621,1748577038183,-771.00957823,0.00021282,2]
[363098622,1748577038192,-365.54,0.00021283,2]
[363098623,1748577038201,-250.0,0.00021287,2]
[363098624,1748577038210,-365.54,0.00021288,2]
[363098625,1748577038219,-365.54,0.00021294,2]
[363098626,1748577038228,-365.54,0.00021299,2]
[363098628,1748577038238,-233.33,0.00021305,2]
[363098630,1748577038247,-365.54,0.00021305,2]
[363098632,1748577038256,-365.54,0.00021311,2]
[363098634,1748577038265,-365.54,0.00021316,2]
[363098636,1748577038277,-365.54,0.00021322,2]
[363098638,1748577038288,-365.54,0.00021327,2]
[363098640,1748577038298,-365.54,0.00021333,2]
[363098642,1748577038307,-453.91,0.0002137,2]
[363098644,1748577038318,-453.91,0.0002137,2]
[363098646,1748577038329,-453.91,0.0002137,2]
[363098648,1748577038338,-430.79,0.0002137,2]
[363098650,1748577038348,-170.34,0.0002137,2]
[363098652,1748577038358,-453.76,0.0002137,2]
[363098654,1748577038368,-771.00957823,0.00021439,2]
[363098656,1748577038378,-152.0,0.0002174,3]
[363098658,1748577038387,-488.61,0.00021757,2]
[363098660,1748577038397,-371.34,0.00021757,2]
[363098662,1748577038407,-999.99,0.00021757,2]
[363098664,1748577038418,-9091.78,0.00021757,2]
[363098666,1748577038428,-406.93460434,0.00021757,2]
[363098668,1748577038440,-453.409542,0.00021757,2]
[363098670,1748577038452,-1480.54153096,0.00021757,2]
[363098682,1748577038555,-1900.6943227,0.00021757,2]
[363098684,1748577038565,-771.00957823,0.00021786,2]
[363098686,1748577038574,-1516.6458,0.00021816,2]
[363098688,1748577038584,-551.0804,0.00021817,2]
[363098690,1748577038593,-485.99214184,0.00021817,2]
[363098692,1748577038603,-186.4501642,0.00021817,2]
[363098694,1748577038612,-155.00860562,0.00021817,2]
[363098696,1748577038621,-167.31162256,0.00021817,2]
[363098698,1748577038632,-843.5351139,0.00021817,2]
[363098700,1748577038642,-166.8360045,0.00021817,2]
[363098702,1748577038651,-161.00686604,0.00021817,2]
[363098704,1748577038661,-619.74,0.00021907,2]
[363098707,1748577038671,-684.40354641,0.00021916,2]
[363098709,1748577038681,-684.40354641,0.00021916,2]
[363098711,1748577038691,-684.40354641,0.00021916,2]
[363098713,1748577038700,-684.40354641,0.00021916,2]
[363098715,1748577038709,-684.40354641,0.00021916,2]
[363098717,1748577038719,-684.40354641,0.00021916,2]
[363098719,1748577038727,-684.40354641,0.00021916,2]
[363098721,1748577038737,-684.40354641,0.00021916,2]
[363098723,1748577038746,-684.40354641,0.00021916,2]
[363098725,1748577038755,-684.40354641,0.00021916,2]
[363098727,1748577038764,-684.40354641,0.00021916,2]
[363098729,1748577038773,-684.40354641,0.00021916,2]
[363098731,1748577038783,-684.40354641,0.00021916,2]
[363098733,1748577038792,-684.40354641,0.00021916,2]
[363098735,1748577038801,-684.40354641,0.00021916,2]
[363098737,1748577038810,-684.40354641,0.00021916,2]
[363098739,1748577038820,-684.40354641,0.00021916,2]
[363098741,1748577038830,-684.40354641,0.00021916,2]
[363098743,1748577038839,-684.40354641,0.00021916,2]
[363098745,1748577038849,-684.40354641,0.00021916,2]
[363098747,1748577038858,-684.40354641,0.00021916,2]
[363098749,1748577038867,-684.40354641,0.00021916,2]
[363098751,1748577038876,-684.40354641,0.00021916,2]
[363098753,1748577038886,-684.40354641,0.00021916,2]
[363098755,1748577038895,-684.40354641,0.00021916,2]
[363098757,1748577038904,-684.40354641,0.00021916,2]
[363098759,1748577038914,-684.40354641,0.00021916,2]
[363098761,1748577038923,-684.40354641,0.00021916,2]
[363098763,1748577038932,-684.40354641,0.00021916,2]
[363098765,1748577038942,-684.40354641,0.00021916,2]
[363098767,1748577038951,-684.40354641,0.00021916,2]
[363098769,1748577038960,-684.40354641,0.00021916,2]
[363098771,1748577038970,-684.40354641,0.00021916,2]
[363098773,1748577038979,-684.40354641,0.00021916,2]
[363098775,1748577038989,-684.40354641,0.00021916,2]
[363098777,1748577038998,-684.40354641,0.00021916,2]
[363098779,1748577039008,-684.40354641,0.00021916,2]
[363098781,1748577039017,-684.40354641,0.00021916,2]
[363098783,1748577039026,-684.40354641,0.00021916,2]
[363098785,1748577039036,-684.40354641,0.00021916,2]
[363098787,1748577039045,-684.40354641,0.00021916,2]
[363098789,1748577039054,-684.40354641,0.00021916,2]
[363098791,1748577039063,-684.40354641,0.00021916,2]
[363098793,1748577039074,-684.40354641,0.00021916,2]
[363098795,1748577039083,-684.40354641,0.00021916,2]
[363098797,1748577039093,-684.40354641,0.00021916,2]
[363098799,1748577039103,-684.40354641,0.00021916,2]
[363098801,1748577039112,-684.40354641,0.00021916,2]
[363098803,1748577039121,-684.40354641,0.00021916,2]
[363098805,1748577039133,-684.40354641,0.00021916,2]
[363098807,1748577039142,-91.20868477,0.00021916,2]
[363098908,1748577039983,420.0,0.0002,7]
[363098912,1748577040010,-593.19486164,0.00021916,2]
[363098914,1748577040020,-684.40354641,0.00021916,2]
[363098916,1748577040029,-684.40354641,0.00021916,2]
[363098918,1748577040039,-684.40354641,0.00021916,2]
[363098920,1748577040048,-684.40354641,0.00021916,2]
[363098922,1748577040057,-684.40354641,0.00021916,2]
[363098924,1748577040067,-684.40354641,0.00021916,2]
[363098927,1748577040076,-684.40354641,0.00021916,2]
[363098929,1748577040086,-684.40354641,0.00021916,2]
[363098931,1748577040095,-684.40354641,0.00021916,2]
[363098933,1748577040104,-684.40354641,0.00021916,2]
[363098935,1748577040114,-684.40354641,0.00021916,2]
[363098937,1748577040123,-684.4035464,0.00021916,2]
[363098939,1748577040132,-684.4035464,0.00021916,2]
[363098941,1748577040141,-684.4035464,0.00021916,2]
[363098943,1748577040150,-684.4035464,0.00021916,2]
[363098945,1748577040161,-684.4035464,0.00021916,2]
[363098947,1748577040170,-684.4035464,0.00021916,2]
[363098949,1748577040179,-684.4035464,0.00021916,2]
[363098951,1748577040188,-684.4035464,0.00021916,2]
[363098953,1748577040197,-684.4035464,0.00021916,2]
[363098955,1748577040206,-684.4035464,0.00021916,2]
[363098957,1748577040215,-684.4035464,0.00021916,2]
[363098959,1748577040224,-684.4035464,0.00021916,2]
[363098961,1748577040234,-684.4035464,0.00021916,2]
[363098963,1748577040246,-684.4035464,0.00021916,2]
[363098965,1748577040255,-684.4035464,0.00021916,2]
[363098967,1748577040264,-684.4035464,0.00021916,2]
[363098969,1748577040274,-684.4035464,0.00021916,2]
[363098970,1748577040287,-684.4035464,0.00021916,2]
[363098971,1748577040296,-684.4035464,0.00021916,2]
[363098972,1748577040305,-684.4035464,0.00021916,2]
[363098973,1748577040314,-684.4035464,0.00021916,2]
[363098974,1748577040325,-684.4035464,0.00021916,2]
[363098975,1748577040335,-684.4035464,0.00021916,2]
[363098976,1748577040344,-684.4035464,0.00021916,2]
[363098977,1748577040354,-684.4035464,0.00021916,2]
[363098978,1748577040364,-684.4035464,0.00021916,2]
[363098979,1748577040373,-684.40354631,0.00021916,2]
[363098981,1748577040382,-180.74,0.00021916,2]
[363098983,1748577040392,-420.0,0.00021917,2]
[363098985,1748577040401,-422.38385316,0.00021917,2]
[363098987,1748577040411,-420.0,0.00021917,2]
[363098989,1748577040421,-420.0,0.00021917,2]
[363098991,1748577040430,-425.36012134,0.00021917,2]
[363098993,1748577040439,-421.26598683,0.00021917,2]
[363098995,1748577040449,-1678.912601,0.00021917,2]
[363098997,1748577040458,-1465.664456,0.00021917,2]
[363098999,1748577040468,-504.4,0.00021917,2]
[363099001,1748577040478,-420.0,0.00021917,2]
[363099003,1748577040487,-420.0,0.00021917,2]
[363099005,1748577040496,-420.0,0.00021917,2]
[363099007,1748577040506,-420.0,0.00021917,2]
[363099009,1748577040515,-428.08694959,0.00021917,2]
[363099011,1748577040524,-420.0,0.00021917,2]
[363099013,1748577040534,-420.0,0.00021917,2]
[363099015,1748577040543,-420.0,0.00021917,2]
[363099017,1748577040552,-587.38,0.00021917,2]
[363099019,1748577040562,-420.0,0.00021917,2]
[363099021,1748577040571,-420.0,0.00021917,2]
[363099023,1748577040580,-420.0,0.00021917,2]
[363099025,1748577040590,-420.0,0.00021917,2]
[363099027,1748577040599,-567.36,0.00021917,2]
[363099029,1748577040609,-420.0,0.00021917,2]
[363099031,1748577040618,-420.0,0.00021917,2]
[363099033,1748577040628,-293.85119542,0.00021917,2]
[363099035,1748577040637,-459.34,0.00021917,2]
[363099037,1748577040646,-420.0,0.00021917,2]
[363099039,1748577040655,-420.0,0.00021917,2]
[363099041,1748577040665,-525.44,0.00021917,2]
[363099043,1748577040675,-420.0,0.00021917,2]
[363099045,1748577040684,-420.0,0.00021917,2]
[363099047,1748577040694,-420.0,0.00021917,2]
[363099049,1748577040704,-670.8,0.00021917,2]
[363099051,1748577040713,-420.0,0.00021917,2]
[363099053,1748577040722,-420.0,0.00021917,2]
[363099055,1748577040732,-420.0,0.00021917,2]
[363099057,1748577040741,-425.73958032,0.00021917,2]
[363099059,1748577040751,-420.0,0.00021917,2]
[363099061,1748577040760,-420.0,0.00021917,2]
[363099063,1748577040769,-420.0,0.00021917,2]
[363099065,1748577040779,-420.0,0.00021917,2]
[363099067,1748577040788,-420.0,0.00021917,2]
[363099069,1748577040797,-456.97,0.00021917,2]
[363099071,1748577040807,-518.23,0.00021917,2]
[363099073,1748577040816,-420.0,0.00021917,2]
[363099075,1748577040825,-420.0,0.00021917,2]
[363099077,1748577040834,-420.0,0.00021917,2]
[363099079,1748577040844,-870.0,0.00021917,2]
[363099081,1748577040854,-420.0,0.00021917,2]
[363099083,1748577040863,-420.0,0.00021917,2]
[363099085,1748577040872,-726.67,0.00021917,2]
[363099087,1748577040882,-420.0,0.00021917,2]
[363099089,1748577040891,-420.0,0.00021917,2]
[363099091,1748577040900,-420.0,0.00021917,2]
[363099093,1748577040910,-316.42312482,0.00021917,2]
[363099095,1748577040922,-420.0,0.00021917,2]
[363099097,1748577040931,-751.34,0.00021917,2]
[363099099,1748577040940,-420.0,0.00021917,2]
[363099101,1748577040949,-420.0,0.00021917,2]
[363099103,1748577040958,-420.0,0.00021917,2]
[363099105,1748577040968,-527.0,0.00021917,2]
[363099107,1748577040977,-423.6964035,0.00021917,2]
[363099109,1748577040986,-420.0,0.00021917,2]
[363099111,1748577040996,-300.0,0.00021917,2]
[363099113,1748577041005,-420.0,0.00021917,2]
[363099115,1748577041015,-502.77,0.00021917,2]
[363099117,1748577041024,-420.0,0.00021917,2]
[363099119,1748577041033,-420.0,0.00021917,2]
[363099121,1748577041043,-545.26,0.00021917,2]
[363099123,1748577041052,-420.0,0.00021917,2]
[363099125,1748577041061,-535.57,0.00021917,2]
[363099127,1748577041071,-420.0,0.00021917,2]
[363099129,1748577041080,-537.9,0.00021917,2]
[363099131,1748577041089,-420.0,0.00021917,2]
[363099133,1748577041099,-609.18,0.00021917,2]
[363099135,1748577041109,-421.20481472,0.00021917,2]
[363099137,1748577041118,-420.0,0.00021917,2]
[363099139,1748577041127,-540.09,0.00021917,2]
[363099141,1748577041137,-503.15,0.00021917,2]
[363099143,1748577041147,-546.48,0.00021917,2]
[363099145,1748577041156,-420.0,0.00021917,2]
[363099147,1748577041167,-692.85,0.00021917,2]
[363099149,1748577041176,-420.0,0.00021917,2]
[363099151,1748577041185,-420.0,0.00021917,2]
[363099153,1748577041195,-475.68,0.00021917,2]
[363099155,1748577041204,-420.0,0.00021917,2]
[363099157,1748577041213,-817.82,0.00021917,2]
[363099159,1748577041222,-506.66,0.00021917,2]
[363099161,1748577041232,-420.0,0.00021917,2]
[363099163,1748577041241,-631.33,0.00021917,2]
[363099165,1748577041250,-420.0,0.00021917,2]
[363099167,1748577041259,-841.57,0.00021917,2]
[363099169,1748577041269,-420.0,0.00021917,2]
[363099171,1748577041280,-420.0,0.00021917,2]
[363099173,1748577041289,-533.06,0.00021917,2]
[363099175,1748577041298,-519.34,0.00021917,2]
[363099177,1748577041307,-153.8842155,0.00021917,2]
[363099179,1748577041319,-420.0,0.00021917,2]
[363099182,1748577041334,-1504.05,0.00021917,2]
[363099184,1748577041351,-420.0,0.00021917,2]
[363099186,1748577041364,-420.0,0.00021917,2]
[363099189,1748577041376,-420.0,0.00021917,2]
[363099191,1748577041391,-843.04,0.00021917,2]
[363099194,1748577041405,-612.34,0.00021917,2]
[363099196,1748577041420,-420.0,0.00021917,2]
[363099199,1748577041435,-451.58,0.00021917,2]
[363099201,1748577041448,-704.25,0.00021917,2]
[363099203,1748577041461,-1130.99,0.00021917,2]
[363099206,1748577041473,-420.0,0.00021917,2]
[363099208,1748577041487,-420.0,0.00021917,2]
[363099211,1748577041501,-420.0,0.00021917,2]
[363099213,1748577041516,-1318.4,0.00021917,2]
[363099216,1748577041530,-307.01452269,0.00021917,2]
[363099218,1748577041544,-1032.75,0.00021917,2]
[363099221,1748577041560,-480.03,0.00021917,2]
[363099224,1748577041573,-450.67,0.00021917,2]
[363099226,1748577041587,-420.0,0.00021917,2]
[363099229,1748577041603,-433.04,0.00021917,2]
[363099231,1748577041617,-420.0,0.00021917,2]
[363099234,1748577041631,-420.0,0.00021917,2]
[363099236,1748577041645,-500.0,0.00021917,2]